bitfinex-derivatives/quotes_SOLF0:USTF0_20250101
["timestamp","ask_amount","ask_price","bid_price","bid_amount"]
[1735723118086,20.19,188.63,188.57,7.77130388]
[1735723118689,20.19,188.63,188.52,7.3472629]
[1735723118889,20.19,188.63,188.56,7.77130388]
[1735723119389,20.19,188.63,188.58,2.6562]
[1735723119790,7.77130388,188.62,188.58,2.6562]
[1735723120292,4.24,188.61,188.58,2.6562]
[1735723121287,7.77130388,188.6,188.58,2.6562]
[1735723121486,7.77130388,188.6,188.53,2.6569]
[1735723121687,7.77130388,188.56,188.53,2.6569]
[1735723121886,7.77130388,188.58,188.53,2.6569]
[1735723122388,7.26,188.61,188.52,7.77130388]
[1735723122585,15.03130388,188.61,188.54,7.77130388]
[1735723122891,15.03130388,188.61,188.55,7.77130388]
[1735723123291,15.03130388,188.61,188.5,3.40717]
[1735723123492,7.77130388,188.6,188.54,7.77130388]
[1735723124594,7.26,188.61,188.56,7.77130388]
[1735723125594,7.26,188.61,188.56,10.42780388]
[1735723127996,7.77130388,188.6,188.5,3.40717]
[1735723128195,7.77130388,188.58,188.5,3.40717]
[1735723128489,7.77130388,188.56,188.51,2.6572]
[1735723128691,7.77130388,188.56,188.5,0.18627]
[1735723129303,7.77130388,188.54,188.5,0.18627]
[1735723129499,3.02,188.56,188.51,7.77130388]
[1735723129692,7.77130388,188.58,188.51,7.77130388]
[1735723129898,7.77130388,188.58,188.5,0.18627]
[1735723130197,3.02,188.59,188.54,7.77130388]
[1735723130398,4.24,188.61,188.5,0.18627]
[1735723130697,4.24,188.61,188.59,7.77130388]
[1735723130898,4.24,188.61,188.54,3.02]
[1735723131090,4.24,188.61,188.59,7.77130388]
[1735723131296,4.24,188.61,188.54,3.02]
[1735723131495,4.24,188.61,188.58,7.77130388]
[1735723132595,4.24,188.61,188.58,10.42750388]
[1735723132796,4.24,188.61,188.6,7.77130388]
[1735723133394,4.24,188.61,188.6,10.42730388]
[1735723134990,7.79,188.62,188.61,2.6558]
[1735723135797,13.74,188.63,188.61,10.42710388]
[1735723136500,13.74,188.63,188.62,2.6557]
[1735723136696,9.5,188.63,188.62,2.6557]
[1735723136901,7.77130388,188.7,188.62,2.6557]
[1735723137098,7.77130388,188.7,188.63,7.77130388]
[1735723137298,4.23,188.69,188.63,10.42680388]
[1735723137902,4.23,188.68,188.63,10.42680388]
[1735723139006,4.23,188.68,188.64,2.6553]
[1735723143304,12.00130388,188.68,188.61,10.42710388]
[1735723143502,12.00130388,188.68,188.61,7.77130388]
[1735723143703,12.00130388,188.68,188.56,3.24]
[1735723143704,7.77130388,188.66,188.59,7.77130388]
[1735723144108,15.50130388,188.66,188.59,7.77130388]
[1735723144307,7.73,188.66,188.61,7.77130388]
[1735723145109,15.50130388,188.66,188.59,10.42740388]
[1735723146006,15.50130388,188.66,188.6,2.656]
[1735723146603,15.50130388,188.66,188.59,7.77130388]
[1735723146604,7.77130388,188.64,188.58,2.6561]
[1735723146803,7.77130388,188.64,188.56,7.77130388]
[1735723147105,3.24,188.65,188.6,7.77130388]
[1735723147307,3.24,188.65,188.61,2.6558]
[1735723147808,3.24,188.65,188.62,7.77130388]
[1735723148103,7.73,188.66,188.62,7.77130388]
[1735723148304,7.73,188.66,188.63,2.6555]
[1735723148505,7.73,188.66,188.64,7.77130388]
[1735723149504,7.73,188.66,188.64,10.42660388]
[1735723149702,7.73,188.66,188.64,7.77130388]
[1735723150313,7.73,188.66,188.65,2.6553]
[1735723151308,7.73,188.66,188.65,10.42660388]
[1735723151711,11.93,188.69,188.68,2.6548]
[1735723151910,11.93,188.69,188.68,10.42610388]
[1735723153105,6.74,188.7,188.69,2.6547]
[1735723153704,3.0497,188.79,188.74,2.654]
[1735723153705,1.5642,188.79,188.74,2.654]
[1735723153906,1.5642,188.79,188.74,7.77130388]
[1735723154315,4.23,188.78,188.74,7.77130388]
[1735723154912,9.75,188.78,188.74,10.42530388]
[1735723156311,9.75,188.78,188.74,2.654]
[1735723157012,9.75,188.78,188.75,2.6538]
[1735723158117,9.75,188.78,188.76,2.6537]
[1735723160205,4.23,188.77,188.76,2.6537]
[1735723160409,4.23,188.77,188.75,2.6538]
[1735723160808,4.23,188.77,188.72,12.14916628]
[1735723162413,4.23,188.77,188.7,3.24]
[1735723163215,4.23,188.77,188.71,2.6543]
[1735723163616,4.23,188.77,188.69,12.14916628]
[1735723163807,4.23,188.77,188.7,2.6544]
[1735723164117,4.23,188.77,188.69,12.14916628]
[1735723164414,4.23,188.77,188.66,15.38916628]
[1735723165413,4.23,188.77,188.68,2.6547]
[1735723166218,4.23,188.77,188.66,15.38916628]
[1735723166820,4.23,188.77,188.71,2.6544]
[1735723168624,4.23,188.77,188.73,2.6541]
[1735723168827,4.23,188.77,188.69,12.14916628]
[1735723169331,4.23,188.77,188.72,12.14916628]
[1735723169530,4.23,188.77,188.72,15.38916628]
[1735723170034,4.23,188.77,188.76,2.6537]
[1735723171437,12.17,188.77,188.76,2.6537]
[1735723172533,12.17,188.77,188.75,14.80296628]
[1735723172827,12.17,188.77,188.72,12.14916628]
[1735723174232,12.17,188.77,188.73,2.654]
[1735723174539,12.17,188.77,188.72,12.14916628]
[1735723175234,7.94,188.77,188.72,12.14916628]
[1735723175434,7.94,188.77,188.74,2.654]
[1735723175631,7.94,188.77,188.72,12.14916628]
[1735723176039,7.94,188.77,188.73,2.6541]
[1735723176236,4.23,188.76,188.73,2.6541]
[1735723177538,4.23,188.76,188.74,2.654]
[1735723178442,10.46,188.76,188.74,2.654]
[1735723181437,4.23,188.75,188.74,2.654]
[1735723181636,4.23,188.75,188.73,7.77676333]
[1735723181836,4.23,188.75,188.73,10.43086333]
[1735723183641,4.23,188.75,188.73,7.77676333]
[1735723183839,4.23,188.75,188.74,2.654]
[1735723184537,4.23,188.75,188.73,10.43086333]
[1735723185744,4.23,188.75,188.73,7.77676333]
[1735723185944,4.23,188.75,188.74,2.654]
[1735723188235,4.23,188.75,188.73,7.77676333]
[1735723188643,4.23,188.75,188.72,2.6542]
[1735723189245,4.23,188.75,188.73,10.43076333]
[1735723189739,4.23,188.75,188.7,2.6545]
[1735723189935,12.00676333,188.75,188.7,2.6545]
[1735723191648,4.23,188.74,188.7,2.6545]
[1735723192346,4.23,188.74,188.71,2.6544]
[1735723195643,9.56,188.74,188.71,2.6544]
[1735723200250,9.56,188.74,188.69,2.6546]
[1735723200445,9.56,188.74,188.68,7.77676333]
[1735723201241,9.56,188.74,188.7,2.6545]
[1735723202847,9.56,188.74,188.7,7.77676333]
[1735723203547,16.71,188.74,188.7,7.77676333]
[1735723203951,16.71,188.74,188.72,7.77676333]
[1735723204650,16.71,188.74,188.73,2.6541]
[1735723206549,16.71,188.74,188.71,2.6544]
[1735723206751,16.71,188.74,188.7,7.77676333]
[1735723207154,16.71,188.74,188.7,10.43116333]
[1735723208654,4.23,188.73,188.7,7.77676333]
[1735723208845,4.23,188.73,188.71,2.6544]
[1735723209354,4.23,188.73,188.7,7.77676333]
[1735723209958,4.23,188.72,188.7,7.77676333]
[1735723211355,4.23,188.72,188.65,3.2]
[1735723211557,4.23,188.72,188.68,7.77676333]
[1735723211752,4.23,188.73,188.68,7.77676333]
[1735723211958,12.00676333,188.73,188.66,7.77676333]
[1735723213058,7.77676333,188.71,188.64,22.7956548]
[1735723213361,7.77676333,188.69,188.62,7.77676333]
[1735723213660,7.77676333,188.69,188.63,2.6555]
[1735723214051,10.85816333,188.69,188.63,2.6555]
[1735723214251,10.85816333,188.69,188.62,7.77676333]
[1735723214661,7.77676333,188.67,188.62,7.77676333]
[1735723215257,7.77676333,188.67,188.62,10.43246333]
[1735723215951,7.77676333,188.67,188.62,7.77676333]
[1735723216358,7.77676333,188.67,188.55,46.33404124]
[1735723216555,7.77676333,188.67,188.6,7.77676333]
[1735723216757,7.77676333,188.67,188.61,2.6557]
[1735723217362,7.77676333,188.67,188.6,7.77676333]
[1735723217560,4.7116,188.68,188.62,7.77676333]
[1735723218064,7.77676333,188.65,188.57,7.77676333]
[1735723218263,7.77676333,188.63,188.54,46.32294065]
[1735723218562,7.77676333,188.61,188.54,54.09970398]
[1735723219165,7.77676333,188.61,188.55,2.6567]
[1735723219364,10.88436333,188.61,188.55,2.6567]
[1735723220367,3.1076,188.61,188.56,2.6565]
[1735723220958,3.1076,188.61,188.59,2.6561]
[1735723221162,3.2,188.66,188.54,12.17600448]
[1735723221663,3.2,188.66,188.59,2.6561]
[1735723222762,9.14,188.66,188.59,2.6561]
[1735723223562,9.14,188.66,188.53,3.2]
[1735723223563,5.94,188.66,188.57,12.17600448]
[1735723223969,5.94,188.66,188.64,2.6554]
[1735723224459,13.1,188.66,188.64,2.6554]
[1735723225968,13.1,188.66,188.63,2.6555]
[1735723229869,4.24,188.65,188.57,12.17600448]
[1735723230069,4.24,188.65,188.63,2.6554]
[1735723230465,4.24,188.65,188.57,12.17600448]
[1735723230662,4.24,188.65,188.64,2.6554]
[1735723231567,4.24,188.65,188.6,12.17600448]
[1735723232169,4.24,188.65,188.64,2.6554]
[1735723233769,4.24,188.65,188.6,12.17600448]
[1735723234673,4.24,188.64,188.63,2.6555]
[1735723236672,10.24,188.64,188.63,2.6555]
[1735723240365,10.24,188.64,188.63,10.43761767]
[1735723240574,7.7694,188.64,188.63,10.43761767]
[1735723240772,5.2988,188.64,188.63,10.43761767]
[1735723241076,4.6047,188.64,188.63,2.6555]
[1735723241272,4.6047,188.64,188.63,10.43761767]
[1735723241471,4.6047,188.64,188.63,2.6555]
[1735723241668,4.6047,188.64,188.63,10.43761767]
[1735723244576,8.8447,188.64,188.63,10.43761767]
[1735723246879,17.5547,188.64,188.63,10.43761767]
[1735723249179,17.5547,188.64,188.63,2.6555]
[1735723255585,17.5547,188.64,188.62,2.6556]
[1735723257393,17.5547,188.64,188.63,2.6555]
[1735723258490,17.5547,188.64,188.57,1.5502]
[1735723258688,25.33681767,188.64,188.56,9.42201767]
[1735723258885,25.33681767,188.64,188.56,7.78211767]
[1735723259285,25.33681767,188.64,188.55,29.38905161]
[1735723259486,25.33681767,188.64,188.56,7.78211767]
[1735723259785,17.5547,188.64,188.58,10.43821767]
[1735723259983,17.5547,188.64,188.62,7.78211767]
[1735723260791,17.5547,188.64,188.58,3.18]
[1735723261092,17.5547,188.64,188.61,7.78211767]
[1735723262192,17.5547,188.64,188.61,10.43791767]
[1735723263990,17.5547,188.64,188.63,7.78211767]
[1735723264899,17.5547,188.64,188.63,10.43761767]
[1735723265996,12.95,188.64,188.63,10.43761767]
[1735723267602,12.95,188.64,188.63,7.78211767]
[1735723268201,12.95,188.64,188.59,2.656]
[1735723268396,8.71,188.64,188.62,7.78211767]
[1735723269600,4.24,188.63,188.62,7.78211767]
[1735723271201,4.24,188.63,188.62,10.43781767]
[1735723272096,8.48,188.63,188.62,10.43781767]
[1735723275005,16.35,188.63,188.62,10.43781767]
[1735723275607,16.35,188.63,188.62,2.6557]
[1735723275810,16.35,188.63,188.62,10.43781767]
[1735723276203,16.35,188.63,188.62,7.78211767]
[1735723277597,16.35,188.63,188.62,10.43781767]
[1735723285013,21.85,188.63,188.62,10.43781767]
[1735723286709,21.85,188.63,188.59,3.24]
[1735723286914,21.85,188.63,188.62,7.78211767]
[1735723288209,21.85,188.63,188.62,10.43781767]
[1735723289818,21.85,188.63,188.62,7.78211767]
[1735723290517,21.85,188.63,188.6,7.78211767]
[1735723290716,17.61,188.63,188.6,7.78211767]
[1735723291622,17.61,188.63,188.6,10.43801767]
[1735723291918,4.24,188.62,188.6,10.43801767]
[1735723293623,13.64,188.62,188.6,10.43801767]
[1735723294624,13.64,188.62,188.6,7.78211767]
[1735723294823,13.64,188.62,188.58,10.43821767]
[1735723297723,13.64,188.62,188.58,7.78211767]
[1735723297924,13.64,188.62,188.54,10.5472629]
[1735723298125,13.64,188.62,188.6,7.78211767]
[1735723299028,20.5,188.62,188.6,10.43801767]
[1735723300131,20.5,188.62,188.61,2.6558]
[1735723302129,20.5,188.62,188.6,7.78211767]
[1735723302326,20.5,188.62,188.6,10.43811767]
[1735723303434,4.24,188.61,188.6,10.43811767]
[1735723304430,4.24,188.61,188.59,5.8561]
[1735723304634,4.24,188.61,188.6,7.78211767]
[1735723306235,4.24,188.61,188.6,10.43811767]
[1735723310533,4.24,188.61,188.6,7.78211767]
[1735723313336,11.26,188.61,188.6,7.78211767]
[1735723314840,11.26,188.61,188.6,10.43811767]
[1735723317138,15.5,188.61,188.6,10.43811767]
[1735723317838,9.4,188.62,188.61,2.6558]
[1735723318739,9.4,188.62,188.61,10.43791767]
[1735723319347,9.4,188.62,188.61,13.63791767]
[1735723322444,9.4,188.62,188.57,29.38905161]
[1735723322634,9.4,188.62,188.6,7.78211767]
[1735723323237,9.4,188.62,188.58,7.78211767]
[1735723324046,9.4,188.62,188.58,10.43831767]
[1735723325248,9.4,188.62,188.58,7.78211767]
[1735723325552,17.18211767,188.62,188.54,7.78211767]
[1735723326546,7.78211767,188.6,188.54,7.78211767]
[1735723328052,17.57211767,188.6,188.53,2.6568]
[1735723328250,17.57211767,188.6,188.53,10.43891767]
[1735723328654,7.78211767,188.58,188.51,2.6571]
[1735723328843,4.6824,188.57,188.51,10.43921767]
[1735723329049,7.78211767,188.56,188.47,29.38905161]
[1735723329248,7.78211767,188.56,188.49,7.78211767]
[1735723329854,4.6824,188.57,188.49,7.78211767]
[1735723329855,7.78211767,188.54,188.49,7.78211767]
[1735723330054,7.78211767,188.52,188.43,69.73820074]
[1735723330249,7.78211767,188.52,188.44,7.78211767]
[1735723331144,7.78211767,188.5,188.43,23.39733032]
[1735723331345,4.645,188.49,188.43,7.78211767]
[1735723331550,4.645,188.49,188.45,7.78211767]
[1735723334152,3.46,188.48,188.45,7.78211767]
[1735723335447,3.46,188.48,188.45,10.44021767]
[1735723335649,3.46,188.48,188.47,7.78211767]
[1735723336252,7.7,188.48,188.47,10.43991767]
[1735723338058,4.6661,188.55,188.49,2.6574]
[1735723338356,4.6661,188.55,188.52,7.78211767]
[1735723338555,12.44821767,188.55,188.46,2.6578]
[1735723338753,12.44821767,188.55,188.48,7.78211767]
[1735723339154,4.24,188.54,188.48,7.78211767]
[1735723339453,4.24,188.54,188.47,2.6578]
[1735723339652,4.24,188.54,188.49,7.78211767]
[1735723340455,4.24,188.54,188.43,3.16]
[1735723340456,4.24,188.54,188.51,7.78211767]
[1735723341658,4.24,188.54,188.49,7.78211767]
[1735723342160,4.24,188.54,188.51,2.6572]
[1735723342563,4.24,188.54,188.49,7.78211767]
[1735723343458,4.24,188.54,188.51,7.78211767]
[1735723343860,4.24,188.54,188.51,10.43931767]
[1735723344562,4.24,188.54,188.51,7.78211767]
[1735723344760,4.24,188.54,188.49,7.78211767]
[1735723345163,12.47,188.54,188.49,7.78211767]
[1735723346159,12.47,188.54,188.43,3.16]
[1735723346356,12.47,188.54,188.48,7.78211767]
[1735723346757,12.47,188.54,188.49,2.6574]
[1735723346957,12.47,188.54,188.42,6.309]
[1735723347158,12.47,188.54,188.47,7.78211767]
[1735723347859,7.78211767,188.53,188.45,7.78211767]
[1735723348865,7.78211767,188.53,188.42,3.16]
[1735723348866,7.78211767,188.53,188.47,7.78211767]
[1735723349058,12.47,188.54,188.5,2.6573]
[1735723349255,12.47,188.54,188.49,7.78211767]
[1735723349865,12.47,188.54,188.51,2.6571]
[1735723350064,12.47,188.54,188.51,10.43921767]
[1735723350357,12.47,188.54,188.52,2.657]
[1735723351070,12.47,188.54,188.51,10.43931767]
[1735723351960,12.47,188.54,188.52,2.6571]
[1735723352165,12.47,188.54,188.53,7.78211767]
[1735723352759,12.47,188.54,188.53,10.43911767]
[1735723356376,9.79,188.6,188.58,10.43831767]
[1735723356677,9.79,188.6,188.58,7.78211767]
[1735723357476,17.14,188.6,188.56,7.78211767]
[1735723358081,17.14,188.6,188.54,7.78211767]
[1735723359069,7.78211767,188.59,188.51,2.6571]
[1735723359269,7.78211767,188.57,188.51,10.43921767]
[1735723359773,7.78211767,188.57,188.51,7.78211767]
[1735723360374,7.78211767,188.57,188.53,2.6569]
[1735723360578,16.04211767,188.57,188.53,2.6569]
[1735723365789,16.04211767,188.57,188.51,7.78211767]
[1735723365979,7.78211767,188.55,188.51,2.6571]
[1735723367980,7.78211767,188.55,188.5,0.18682]
[1735723368184,7.78211767,188.55,188.5,2.84422]
[1735723369678,1.18,188.54,188.5,0.18682]
[1735723372582,7.78211767,188.53,188.5,0.18682]
[1735723372789,7.78211767,188.53,188.47,7.78211767]
[1735723373185,7.78211767,188.53,188.45,15.12938057]
[1735723373691,7.78211767,188.53,188.45,7.78211767]
[1735723374489,7.78211767,188.53,188.46,2.6579]
[1735723374689,15.71211767,188.53,188.46,2.6579]
[1735723375293,15.71211767,188.53,188.46,10.44001767]
[1735723375491,15.71211767,188.53,188.47,2.6578]
[1735723380191,7.93,188.53,188.49,2.6575]
[1735723380393,11.15,188.53,188.48,7.78211767]
[1735723380594,7.93,188.53,188.48,7.78211767]
[1735723380785,7.93,188.53,188.49,2.6575]
[1735723381393,7.93,188.53,188.48,10.43971767]
[1735723382497,7.93,188.53,188.48,2.6576]
[1735723382897,7.78211767,188.52,188.46,7.78211767]
[1735723383096,7.78211767,188.52,188.44,10.44031767]
[1735723384200,7.78211767,188.5,188.43,10.44041767]
[1735723384699,11.00211767,188.5,188.43,10.44041767]
[1735723385498,17.49211767,188.5,188.43,10.44041767]
[1735723386098,17.49211767,188.5,188.44,2.6581]
[1735723386901,7.78211767,188.48,188.43,2.6583]
[1735723388302,7.78211767,188.48,188.35,29.38905161]
[1735723388601,7.78211767,188.48,188.41,7.78211767]
[1735723389297,7.78211767,188.48,188.43,2.6583]
[1735723389799,1.19,188.47,188.43,2.6583]
[1735723390797,1.19,188.47,188.35,3.22]
[1735723390996,1.19,188.47,188.41,10.44061767]
[1735723390997,10.75,188.47,188.41,10.44061767]
[1735723391500,10.75,188.47,188.41,2.6585]
[1735723391695,7.78211767,188.46,188.4,2.6588]
[1735723392105,7.78211767,188.46,188.39,10.44101767]
[1735723392606,3.22,188.45,188.39,10.44101767]
[1735723393110,3.22,188.45,188.39,2.6589]
[1735723394207,7.78211767,188.44,188.39,2.6589]
[1735723394810,3.22,188.45,188.39,2.6589]
[1735723395105,7.78211767,188.44,188.39,2.6589]
[1735723396204,3.22,188.45,188.4,10.44081767]
[1735723401006,3.22,188.45,188.4,7.78211767]
[1735723401512,7.78211767,188.44,188.39,2.6589]
[1735723402200,7.78211767,188.44,188.38,7.78211767]
[1735723402408,3.22,188.45,188.4,7.78211767]
[1735723404406,3.22,188.45,188.42,2.6584]
[1735723405110,1.19,188.44,188.42,2.6584]
[1735723407211,10.42,188.44,188.42,2.6584]
[1735723408109,10.42,188.44,188.42,7.78211767]
[1735723409207,10.42,188.44,188.43,2.6584]
[1735723414209,10.42,188.44,188.42,10.44061767]
[1735723415115,10.42,188.44,188.42,2.6585]
[1735723415810,10.42,188.44,188.41,7.78211767]
[1735723416009,10.42,188.44,188.41,2.6586]
[1735723416214,10.42,188.44,188.39,7.78211767]
[1735723416414,10.42,188.44,188.41,2.6586]
[1735723416811,18.36,188.44,188.41,2.6586]
[1735723418414,18.36,188.44,188.4,2.6588]
[1735723420817,18.36,188.44,188.42,2.6585]
[1735723421020,18.36,188.44,188.39,7.78211767]
[1735723421415,18.36,188.44,188.41,2.6585]
[1735723422215,18.36,188.44,188.42,2.6584]
[1735723422420,18.36,188.44,188.4,7.78211767]
[1735723423223,18.36,188.44,188.38,2.659]
[1735723423414,18.36,188.44,188.41,7.78211767]
[1735723423813,18.36,188.44,188.42,2.6584]
[1735723424211,17.17,188.44,188.42,2.6584]
[1735723425014,17.17,188.44,188.41,2.6586]
[1735723425215,1.19,188.43,188.37,7.78211767]
[1735723426414,1.19,188.43,188.39,2.6589]
[1735723426713,1.19,188.43,188.39,7.78211767]
[1735723426917,1.19,188.43,188.42,2.6585]
[1735723428124,1.19,188.43,188.32,60.26522019]
[1735723428420,1.19,188.43,188.38,7.78211767]
[1735723429524,1.19,188.43,188.39,2.6588]
[1735723433123,7.78211767,188.42,188.39,2.6588]
[1735723433322,7.78211767,188.42,188.32,32.57465161]
[1735723433522,7.78211767,188.4,188.33,7.78211767]
[1735723433718,7.78211767,188.42,188.35,7.78211767]
[1735723434027,8.6115,188.43,188.32,32.57465161]
[1735723434028,11.8315,188.43,188.39,7.78211767]
[1735723434225,11.8315,188.43,188.35,2.6595]
[1735723434426,11.8315,188.43,188.37,7.78211767]
[1735723434926,11.8315,188.43,188.39,2.6588]
[1735723435334,30.08361767,188.43,188.39,2.6588]
[1735723435730,22.3015,188.43,188.39,2.6588]
[1735723435931,17.58,188.43,188.39,7.78211767]
[1735723436934,17.58,188.43,188.42,2.6585]
[1735723437933,17.58,188.43,188.32,6.4056]
[1735723438140,17.58,188.43,188.38,2.659]
[1735723438329,17.58,188.43,188.32,6.4056]
[1735723438534,17.58,188.43,188.38,2.659]
[1735723439038,17.58,188.43,188.37,7.78211767]
[1735723439238,17.58,188.43,188.39,2.6589]
[1735723440141,17.58,188.43,188.4,2.6588]
[1735723440329,17.58,188.43,188.37,7.78211767]
[1735723440531,17.58,188.43,188.33,2.6597]
[1735723440834,20.86,188.43,188.36,7.78211767]
[1735723441030,17.58,188.43,188.38,7.78211767]
[1735723441834,17.58,188.43,188.39,2.6589]
[1735723442035,17.58,188.43,188.38,7.78211767]
[1735723442540,17.58,188.43,188.4,7.78211767]
[1735723443045,17.58,188.43,188.42,2.6585]
[1735723448242,17.58,188.43,188.42,10.44061767]
[1735723448436,17.39318,188.43,188.42,10.44061767]
[1735723448642,16.39,188.43,188.42,10.44061767]
[1735723450845,16.39,188.43,188.42,2.6585]
[1735723451346,16.39,188.43,188.4,2.6587]
[1735723451941,16.39,188.43,188.38,2.6589]
[1735723452243,16.39,188.43,188.37,7.78211767]
[1735723452442,1.01,188.42,188.37,7.78211767]
[1735723452942,1.01,188.42,188.39,2.6589]
[1735723453344,1.01,188.42,188.32,3.28]
[1735723453548,1.01,188.42,188.38,2.6589]
[1735723453851,7.08,188.42,188.38,2.6589]
[1735723454248,7.08,188.42,188.39,2.6588]
[1735723454751,7.08,188.42,188.41,2.6586]
[1735723456547,7.08,188.42,188.41,10.44071767]
[1735723457851,7.08,188.42,188.41,2.6586]
[1735723458050,7.08,188.42,188.41,10.44071767]
[1735723460154,7.08,188.42,188.41,2.6586]
[1735723460744,7.08,188.42,188.41,10.44071767]
[1735723462257,7.08,188.42,188.41,2.6586]
[1735723462959,7.08,188.42,188.41,10.44071767]
[1735723463361,7.08,188.42,188.39,2.6588]
[1735723463658,7.08,188.42,188.39,7.78211767]
[1735723464457,7.08,188.42,188.41,2.6586]
[1735723465764,7.08,188.42,188.41,10.44071767]
[1735723466559,15.96,188.42,188.41,10.44071767]
[1735723467367,15.96,188.42,188.41,2.6586]
[1735723472569,15.96,188.42,188.41,10.44071767]
[1735723475171,15.96,188.42,188.34,7.3472629]
[1735723475373,15.96,188.42,188.38,7.78211767]
[1735723475873,15.96,188.42,188.37,2.6592]
[1735723476275,15.96,188.42,188.34,7.3472629]
[1735723476477,15.96,188.42,188.36,10.44141767]
[1735723478375,15.96,188.42,188.37,2.6591]
[1735723478769,15.96,188.42,188.38,7.78211767]
[1735723479573,14.95,188.42,188.38,7.78211767]
[1735723479773,14.95,188.42,188.38,10.44121767]
[1735723480672,1.01,188.41,188.38,2.6591]
[1735723481778,1.01,188.41,188.31,29.38905161]
[1735723481970,1.01,188.41,188.35,7.78211767]
[1735723482171,7.21,188.41,188.35,7.78211767]
[1735723482481,7.21,188.41,188.3,10.8272629]
[1735723482674,7.21,188.41,188.35,7.78211767]
[1735723483571,7.21,188.41,188.36,2.6593]
[1735723485777,14.73,188.41,188.36,2.6593]
[1735723490180,14.73,188.41,188.35,7.78211767]
[1735723490379,14.73,188.41,188.37,2.6592]
[1735723491282,14.73,188.41,188.38,2.659]
[1735723496987,7.78211767,188.4,188.3,3.48]
[1735723497188,7.78211767,188.4,188.34,7.78211767]
[1735723497690,7.78211767,188.4,188.3,3.48]
[1735723497691,7.78211767,188.4,188.29,3.48]
[1735723497891,7.78211767,188.4,188.34,7.78211767]
[1735723499393,7.78211767,188.4,188.36,2.6592]
[1735723501903,1.01,188.39,188.36,2.6592]
[1735723502892,7.78211767,188.38,188.3,2.6602]
[1735723503096,7.78211767,188.35,188.28,7.78211767]
[1735723503491,7.78211767,188.35,188.3,7.78211767]
[1735723503799,10.92191767,188.37,188.3,7.78211767]
[1735723504097,10.92191767,188.37,188.32,7.78211767]
[1735723506300,10.92191767,188.37,188.34,2.6595]
[1735723506704,3.1398,188.37,188.34,2.6595]
[1735723507004,1.6297,188.38,188.34,7.78211767]
[1735723507401,1.6297,188.38,188.36,7.78211767]
[1735723507601,11.04,188.39,188.38,2.6591]
[1735723509898,11.04,188.39,188.35,7.78211767]
[1735723510302,18.82211767,188.39,188.29,3.42]
[1735723510606,18.82211767,188.39,188.34,2.6595]
[1735723511307,18.82211767,188.39,188.35,2.6595]
[1735723511913,18.82211767,188.39,188.36,2.6593]
[1735723512307,18.82211767,188.39,188.33,7.78211767]
[1735723512602,18.82211767,188.39,188.35,2.6595]
[1735723513009,11.04,188.39,188.36,2.6593]
[1735723513215,17.29,188.39,188.36,2.6593]
[1735723514314,17.29,188.39,188.38,2.6591]
[1735723515316,17.29,188.39,188.38,10.44121767]
[1735723515509,6.25,188.39,188.38,10.44121767]
[1735723515712,5.5994,188.39,188.38,10.44121767]
[1735723517820,7.78211767,188.48,188.43,2.6582]
[1735723518118,7.78211767,188.48,188.43,7.78211767]
[1735723518913,3.0218,188.49,188.43,7.78211767]
[1735723519118,6.64,188.48,188.43,7.78211767]
[1735723519520,14.84,188.48,188.41,7.78211767]
[1735723520017,7.78211767,188.47,188.41,7.78211767]
[1735723520217,14.84,188.48,188.41,7.78211767]
[1735723520514,14.84,188.48,188.42,2.6585]
[1735723521322,14.84,188.48,188.44,2.6582]